fUST/lending_fUST_20240717
["ID","MTS","AMOUNT","RATE_DAILY","PERIOD"]
[332477053,1721226644272,-260.31649132,0.00021917,2]
[332477054,1721226644281,-500.0,0.00021917,2]
[332477055,1721226644291,-500.0,0.00021917,2]
[332477056,1721226644300,-500.0,0.00021917,2]
[332477057,1721226644310,-500.0,0.00021917,2]
[332477058,1721226644320,-500.0,0.00021917,2]
[332477059,1721226644329,-500.0,0.00021917,2]
[332477060,1721226644340,-604.26,0.00021917,2]
[332477061,1721226644350,-500.0,0.00021917,2]
[332477062,1721226644359,-500.0,0.00021917,2]
[332477063,1721226644369,-500.0,0.00021917,2]
[332477064,1721226644378,-500.0,0.00021917,2]
[332477065,1721226644389,-500.0,0.00021917,2]
[332477066,1721226644399,-500.0,0.00021917,2]
[332477067,1721226644409,-500.0,0.00021917,2]
[332477068,1721226644419,-500.0,0.00021917,2]
[332477069,1721226644429,-500.0,0.00021917,2]
[332477070,1721226644439,-293.44,0.00021917,2]
[332477071,1721226644449,-500.0,0.00021917,2]
[332477072,1721226644458,-500.0,0.00021917,2]
[332477073,1721226644467,-213.94,0.00021917,2]
[332477074,1721226644477,-500.0,0.00021917,2]
[332477075,1721226644487,-500.0,0.00021917,2]
[332477076,1721226644499,-500.0,0.00021917,2]
[332477077,1721226644509,-500.0,0.00021917,2]
[332477078,1721226644519,-500.0,0.00021917,2]
[332477079,1721226644528,-500.0,0.00021917,2]
[332477080,1721226644538,-500.0,0.00021917,2]
[332477081,1721226644547,-635.74,0.00021917,2]
[332477082,1721226644556,-500.0,0.00021917,2]
[332477083,1721226644566,-505.48716138,0.00021917,2]
[332477084,1721226644575,-500.0,0.00021917,2]
[332477085,1721226644585,-500.0,0.00021917,2]
[332477086,1721226644594,-500.0,0.00021917,2]
[332477087,1721226644604,-507.288803,0.00021917,2]
[332477088,1721226644613,-500.0,0.00021917,2]
[332477089,1721226644623,-500.0,0.00021917,2]
[332477090,1721226644633,-500.0,0.00021917,2]
[332477091,1721226644646,-500.0,0.00021917,2]
[332477092,1721226644655,-500.0,0.00021917,2]
[332477093,1721226644665,-500.0,0.00021917,2]
[332477094,1721226644675,-500.0,0.00021917,2]
[332477095,1721226644684,-500.0,0.00021917,2]
[332477096,1721226644694,-500.0,0.00021917,2]
[332477097,1721226644703,-500.0,0.00021917,2]
[332477098,1721226644713,-500.0,0.00021917,2]
[332477099,1721226644724,-522.2007787,0.00021917,2]
[332477100,1721226644734,-500.0,0.00021917,2]
[332477101,1721226644746,-500.0,0.00021917,2]
[332477102,1721226644758,-590.64618288,0.00021917,2]
[332477103,1721226644769,-500.0,0.00021917,2]
[332477104,1721226644779,-500.0,0.00021917,2]
[332477105,1721226644791,-500.0,0.00021917,2]
[332477106,1721226644801,-500.0,0.00021917,2]
[332477107,1721226644814,-500.0,0.00021917,2]
[332477108,1721226644825,-500.0,0.00021917,2]
[332477109,1721226644836,-500.0,0.00021917,2]
[332477110,1721226644847,-209.19933346,0.00021917,2]
[332477111,1721226644858,-502.11441491,0.00021917,2]
[332477112,1721226644868,-500.0,0.00021917,2]
[332477113,1721226644879,-500.0,0.00021917,2]
[332477114,1721226644891,-500.0,0.00021917,2]
[332477115,1721226644902,-500.0,0.00021917,2]
[332477116,1721226644912,-201.47207855,0.00021917,2]
[332477117,1721226645027,-3778.72551572,0.00019515,2]
[332477118,1721226645038,-151.0,0.00021,2]
[332477119,1721226645048,-1672.071649,0.00021,2]
[332477120,1721226645057,-1559.74762076,0.0002185,2]
[332477124,1721226646104,-6087.9996638,0.00019515,2]
[332477142,1721226830865,271.09580578,0.00014999,2]
[332477144,1721226851178,160.0,0.00014999,2]
[332477145,1721226853276,458.65976805,0.00014999,2]
[332477147,1721226864625,154.79103211,0.00014999,2]
[332477148,1721226869493,155.07276024,0.00014999,2]
[332477152,1721226872124,10598.3900565,0.00014998,2]
[332477153,1721226887114,10598.3900565,0.00014998,2]
[332477154,1721226888200,481.17644705,0.00014999,2]
[332477155,1721226889001,4703.84902292,0.00014999,2]
[332477157,1721226893518,493.35996259,0.00014999,2]
[332477158,1721226909619,188.46779172,0.00014999,2]
[332477159,1721226909852,17278.76823358,0.00014998,2]
[332477161,1721226912347,3778.72551572,0.00014999,2]
[332477163,1721226948293,11907.79726539,0.00014794,2]
[332477166,1721226991306,159.65124257,0.00014999,2]
[332477167,1721227003353,276.956922,0.00015262,2]
[332477168,1721227006938,240.84737953,0.00014999,2]
[332477170,1721227023961,1089.0794059,0.00015,2]
[332477172,1721227036959,154.79103211,0.00014794,2]
[332477173,1721227037710,2136.83357294,0.00014999,2]
[332477176,1721227040146,6092.32543516,0.00014998,2]
[332477179,1721227082502,244.335768,0.00015082,2]
[332477180,1721227091691,8081.06944841,0.00014998,2]
[332477181,1721227092024,493.11731325,0.00014999,2]
[332477183,1721227094480,154.79103211,0.00014999,2]
[332477184,1721227094532,415.17920703,0.00014999,2]
[332477185,1721227098045,1063.12812108,0.00014999,2]
[332477187,1721227142970,154.79103211,0.00015082,2]
[332477188,1721227145059,11056.31209465,0.00014998,2]
[332477190,1721227157903,2414.76449425,0.00015,2]
[332477192,1721227162983,935.88747239,0.00014999,2]
[332477193,1721227165267,899.56510701,0.00014999,2]
[332477195,1721227199045,2135.31767214,0.00014999,2]
[332477197,1721227224005,155.22212231,0.00014999,2]
[332477198,1721227238071,891.12787542,0.00014999,2]
[332477201,1721227242055,987.41667127,0.00015,2]
[332477202,1721227246050,1490.82891825,0.00014999,2]
[332477203,1721227246971,154.79103211,0.00014999,2]
[332477204,1721227247942,726.14786698,0.00014999,2]
[332477205,1721227248318,982.12918538,0.00014999,2]
[332477208,1721227275951,6837.5367006,0.0002022,7]
[332477210,1721227300860,525.73842429,0.00014999,2]
[332477213,1721227305450,532.75729962,0.00014999,2]
[332477214,1721227307781,250.0,0.0001515,2]
[332477215,1721227308005,250.0,0.00015192,2]
[332477216,1721227308241,250.0,0.00015233,2]
[332477217,1721227308457,250.0,0.00015275,2]
[332477218,1721227308678,250.0,0.00015317,2]
[332477219,1721227308945,250.0,0.00015358,2]
[332477220,1721227309236,250.0,0.000154,2]
[332477222,1721227309680,250.0,0.00015441,2]
[332477223,1721227309725,250.0,0.00015483,2]
[332477224,1721227309968,250.0,0.00015524,2]
[332477225,1721227310206,250.0,0.00015566,2]
[332477226,1721227310431,250.0,0.00015608,2]
[332477227,1721227310586,845.11491107,0.00014999,2]
[332477228,1721227310680,250.0,0.00015649,2]
[332477230,1721227316920,247.69864947,0.00014999,2]
[332477231,1721227322437,909.7461121,0.00014999,2]
[332477232,1721227328491,950.86453531,0.00015,2]
[332477233,1721227336933,9484.3404014,0.00014937,2]
[332477234,1721227340975,160.7268433,0.00015192,2]
[332477235,1721227353488,2121.85652379,0.00014999,2]
[332477238,1721227376567,645.00073361,0.00014999,2]
[332477239,1721227384573,208.37440532,0.00014999,2]
[332477241,1721227410912,5477.24580596,0.00014998,2]
[332477242,1721227411329,24900.0,0.00014936,2]
[332477243,1721227420334,200.2890765,0.00014936,2]
[332477245,1721227424750,155.01414982,0.00014999,2]
[332477247,1721227467441,220.15383253,0.00014999,2]
[332477249,1721227469085,154.96102002,0.00014999,2]
[332477250,1721227470584,188.87827514,0.00014999,2]
[332477252,1721227472841,156.02867704,0.00014999,2]
[332477253,1721227474626,220.75135017,0.00014999,2]
[332477254,1721227481558,196.12614275,0.00014999,2]
[332477255,1721227487015,301.37525549,0.00014999,2]
[332477256,1721227487563,319.02412472,0.00014999,2]
[332477257,1721227491490,154.79103211,0.00014999,2]
[332477258,1721227492254,193.63393085,0.00014999,2]
[332477259,1721227494720,180.90578811,0.00014999,2]
[332477260,1721227495129,156.17659771,0.00014999,2]
[332477261,1721227495328,182.59909899,0.00014999,2]
[332477263,1721227497626,949.87853103,0.00015,2]
[332477264,1721227498468,2122.47397933,0.00014999,2]
[332477265,1721227499941,404.04953729,0.00014999,2]
[332477266,1721227504709,180.55121184,0.00014999,2]
[332477267,1721227507366,249.53557838,0.00014999,2]
[332477268,1721227507861,375.33441118,0.00014999,2]
[332477269,1721227514540,183.71919178,0.00014999,2]
[332477270,1721227515107,160.18263848,0.00014999,2]
[332477272,1721227533449,209.96027544,0.00014999,2]
[332477274,1721227558497,1029.69240799,0.00015,2]
[332477275,1721227565235,582.36504092,0.00014999,2]
[332477276,1721227571921,879.7365099,0.00014999,2]
[332477277,1721227584536,723.61521419,0.00014999,2]
[332477278,1721227584566,1989.67183354,0.00014999,2]
[332477281,1721227625581,300.059739,0.00014936,2]
[332477283,1721227632232,203.54093102,0.00014999,2]
[332477284,1721227633556,662.5058072,0.00014999,2]
[332477285,1721227649491,950.29706761,0.00015,2]
[332477286,1721227650475,156.31996498,0.00014999,2]
[332477287,1721227655161,1336.9174961,0.00014985,2]
[332477288,1721227657216,250.0,0.00014985,2]
[332477289,1721227658480,2118.64629205,0.00014999,2]
[332477290,1721227658710,180.05717902,0.00014999,2]
[332477293,1721227685755,599.44172174,0.00014999,2]
[332477294,1721227694004,-250.0,0.00015691,2]
[332477295,1721227694035,-250.0,0.00015732,2]
[332477296,1721227694066,-31.91349194,0.00015768,2]
[332477297,1721227694101,-531.91349194,0.00015768,2]
[332477298,1721227703944,323.19556724,0.00014999,2]
[332477299,1721227704072,2837.49498995,0.00015,2]
[332477300,1721227705289,273.96674058,0.00014999,2]
[332477301,1721227705553,3166.222109,0.00015143,2]
[332477302,1721227718982,-250.0,0.00015774,2]
[332477303,1721227719013,-250.0,0.00015815,2]
[332477304,1721227719042,-53.19003162,0.00015857,2]
[332477305,1721227719076,-196.80996838,0.00015857,2]
[332477306,1721227719105,-250.0,0.00015898,2]
[332477307,1721227719134,-102.71649419,0.0001593,2]
[332477308,1721227722956,-197.28350581,0.0001593,2]
[332477309,1721227722982,-7856.3779531,0.00015931,2]
[332477310,1721227723016,-250.0,0.0001594,2]
[332477311,1721227723045,-491.60345067,0.00015995,2]
[332477312,1721227732433,194.50164443,0.00014999,2]
[332477313,1721227734835,17881.06779372,0.00015899,2]
[332477319,1721227775604,523.91323393,0.00014999,2]
[332477322,1721227801079,530.20355034,0.00014999,2]
[332477323,1721227802582,195.95107396,0.00014999,2]
[332477324,1721227806505,805.71378172,0.00015,2]
[332477325,1721227815332,155.56858064,0.00014999,2]
[332477326,1721227829057,666.48425007,0.00014999,2]
[332477343,1721227832151,-191.27062445,0.00015999,2]
[332477345,1721227832162,-300.0,0.00016244,2]
[332477347,1721227832172,-2822.30161071,0.00016245,2]
[332477349,1721227832185,-1716.52419962,0.00016245,2]
[332477352,1721227832205,-5196.6394434,0.00016245,2]
[332477355,1721227832217,-30.29900384,0.00016245,2]
[332477358,1721227832226,-500.0,0.00016254,2]
[332477360,1721227832236,-500.0,0.00016254,2]
[332477362,1721227832245,-500.0,0.00016254,2]
[332477364,1721227832254,-500.0,0.00016254,2]
[332477366,1721227832263,-488.03512829,0.00016254,2]
[332477368,1721227832272,-481.66586787,0.00016255,2]
[332477397,1721227835391,247.41329512,0.00014999,2]
[332477408,1721227838283,-1518.34020742,0.00016255,2]
[332477410,1721227838295,-19275.2894062,0.00016255,2]
[332477411,1721227838305,-34983.05229305,0.00016255,2]
[332477413,1721227838315,-42297.33181855,0.00016255,2]
[332477414,1721227838324,-13116.38482712,0.00016255,2]
[332477415,1721227838334,-2424.63574619,0.00016255,2]
[332477416,1721227838343,-2229.60512901,0.00016255,2]
[332477417,1721227838352,-277.01550922,0.00016828,2]
[332477418,1721227838362,-249.61680569,0.00017159,2]
[332477419,1721227838371,-9765.76425757,0.00017468,2]
[332477420,1721227838381,-420.0,0.00017868,2]
[332477421,1721227838390,-386.50522051,0.0001818,2]
[332477422,1721227838399,-5507.5385206,0.0001818,2]
[332477423,1721227838411,-9765.76425757,0.00018788,2]
[332477424,1721227838421,-191.39935973,0.00018798,2]
[332477425,1721227838430,-325.5421602,0.000188,2]
[332477426,1721227838440,-30000.0,0.00018898,2]
[332477427,1721227838449,-30000.0,0.00018898,2]
[332477428,1721227838459,-3497.39475891,0.000189,2]
[332477429,1721227838468,-2496.10200774,0.00019,2]
[332477430,1721227838477,-758.13758367,0.00019039,2]
[332477431,1721227838487,-197.57665127,0.00019039,2]
[332477432,1721227838496,-2134.96934119,0.00019164,2]
[332477433,1721227838506,-164.64795,0.00019178,2]
[332477434,1721227838515,-164.546732,0.00019178,2]
[332477435,1721227838525,-501.5294303,0.00019178,2]
[332477436,1721227838539,-3081.98984845,0.00019271,2]
[332477437,1721227838549,-325.54216019,0.00019575,2]
[332477438,1721227838559,-587.0,0.00019655,2]
[332477439,1721227838571,-195.9277349,0.00019999,2]
[332477440,1721227838580,-500.0,0.00019999,2]
[332477441,1721227838590,-500.0,0.00019999,2]
[332477442,1721227838600,-193.17326787,0.00019999,2]
[332477443,1721227838612,-579.06757953,0.00019999,2]
[332477444,1721227838622,-172.68065646,0.00019999,2]
[332477445,1721227838632,-201.83805034,0.00019999,2]
[332477446,1721227838642,-500.0,0.00019999,2]
[332477447,1721227838653,-500.0,0.00019999,2]
[332477448,1721227838663,-500.0,0.00019999,2]
[332477449,1721227838674,-500.0,0.00019999,2]
[332477450,1721227838685,-500.0,0.00019999,2]
[332477451,1721227838695,-500.0,0.00019999,2]
[332477452,1721227838707,-500.0,0.00019999,2]
[332477453,1721227838717,-500.0,0.00019999,2]
[332477454,1721227838728,-500.0,0.00019999,2]
[332477455,1721227838738,-500.0,0.00019999,2]
[332477456,1721227838747,-500.0,0.00019999,2]
[332477457,1721227838756,-525.68290566,0.00019999,2]
[332477458,1721227838765,-500.0,0.00019999,2]
[332477459,1721227838777,-500.0,0.00019999,2]
[332477460,1721227838786,-500.0,0.00019999,2]
[332477461,1721227838796,-500.0,0.00019999,2]
[332477462,1721227838805,-353.99596154,0.00019999,2]
[332477463,1721227838814,-500.0,0.00019999,2]
[332477464,1721227838824,-500.0,0.00019999,2]
[332477465,1721227838834,-500.0,0.00019999,2]
[332477466,1721227838843,-500.0,0.00019999,2]
[332477467,1721227838852,-500.0,0.00019999,2]
[332477468,1721227838862,-500.0,0.00019999,2]
[332477469,1721227838871,-500.0,0.00019999,2]
[332477470,1721227838880,-479.55592776,0.00019999,2]
[332477471,1721227838889,-500.0,0.00019999,2]
[332477472,1721227838898,-1000.0,0.0002,6]
[332477473,1721227838908,-150.112233,0.0002,2]
[332477474,1721227838917,-293.89533444,0.0002,2]
[332477475,1721227838926,-154.88949836,0.0002,2]
[332477476,1721227838936,-309.45844772,0.0002,2]
[332477477,1721227838945,-228.33337167,0.0002,2]
[332477478,1721227838955,-206.4665977,0.00020219,2]
[332477479,1721227838964,-150.112233,0.000203,2]
[332477480,1721227838973,-325.54216019,0.0002035,2]
[332477481,1721227838982,-9765.76425757,0.00020499,2]
[332477482,1721227838991,-150.112233,0.000205,5]
[332477483,1721227839001,-391.1072864,0.00020509,2]
[332477484,1721227839010,-3283.2649626,0.00020509,2]
[332477485,1721227839019,-150.112233,0.000208,2]
[332477486,1721227839029,-1000.0,0.00021,21]
[332477487,1721227839038,-396.60210355,0.00021,2]
[332477488,1721227839049,-200.07730814,0.00021,2]
[332477489,1721227839058,-260.9,0.00021037,2]
[332477490,1721227839067,-206.4665977,0.00021041,2]
[332477491,1721227839079,-412.9331954,0.00021041,2]
[332477492,1721227839088,-206.4665977,0.00021041,2]
[332477493,1721227839098,-206.4665977,0.00021041,2]
[332477494,1721227839108,-206.4665977,0.00021041,2]
[332477495,1721227839117,-579.127659,0.00021096,2]
[332477496,1721227839128,-150.112233,0.000211,5]
[332477497,1721227839137,-12215.64277046,0.000211,2]
[332477498,1721227839147,-325.54216019,0.00021125,2]
[332477499,1721227839156,-260.9,0.00021267,2]
[332477500,1721227839166,-153.0,0.00021397,2]
[332477501,1721227839176,-150.112233,0.000214,5]
[332477502,1721227839185,-260.9,0.00021496,2]
[332477503,1721227839195,-150.112233,0.000215,3]
[332477504,1721227839205,-3414.24843499,0.00021624,2]
[332477505,1721227839214,-1000.0,0.00021636,2]
[332477506,1721227839224,-1000.0,0.0002166,2]
[332477507,1721227839234,-1000.0,0.00021686,2]
[332477508,1721227839244,-150.112233,0.000217,2]
[332477509,1721227839254,-150.112233,0.000217,2]
[332477510,1721227839263,-260.9,0.00021726,2]
[332477511,1721227839274,-453.18166059,0.00021741,2]
[332477512,1721227839284,-344.96997794,0.00021759,2]
[332477513,1721227839293,-1000.0,0.00021775,2]
[332477514,1721227839303,-9765.76425757,0.00021791,3]
[332477515,1721227839312,-300.44952216,0.00021795,2]
[332477516,1721227839324,-3000.0,0.000218,2]
[332477517,1721227839333,-150.112233,0.000218,2]
[332477518,1721227839343,-3.1945211,0.00021807,2]
[332477519,1721227839357,-1996.8054789,0.00021807,2]
[332477520,1721227839366,-5299.099794,0.0002181,2]
[332477521,1721227839376,-1000.0,0.0002181,2]
[332477522,1721227839386,-30000.00000001,0.00021817,3]
[332477523,1721227839395,-2775.55127465,0.00021836,3]
[332477524,1721227839523,-6990.21298292,0.00021836,3]
[332477525,1721227839537,-3414.248435,0.00021844,2]
[332477526,1721227839547,-1000.0,0.00021857,2]
[332477527,1721227839556,-206.4665977,0.00021863,2]
[332477528,1721227839567,-412.9331954,0.00021863,2]
[332477529,1721227839577,-206.4665977,0.00021863,2]
[332477530,1721227839587,-206.4665977,0.00021863,2]
[332477531,1721227839596,-206.4665977,0.00021863,2]
[332477532,1721227839608,-206.4665977,0.00021863,2]
[332477533,1721227839618,-206.4665977,0.00021863,2]
[332477534,1721227839628,-411.4785535,0.00021863,2]
[332477535,1721227839637,-206.4665977,0.00021863,2]
[332477536,1721227839647,-206.4665977,0.00021863,2]
[332477537,1721227839656,-1000.0,0.00021867,2]
[332477538,1721227839666,-877.02144721,0.00021869,2]
[332477539,1721227839676,-1000.0,0.0002189,2]
[332477540,1721227839684,-5234.35281396,0.00021897,3]
[332477541,1721227840240,-4531.41144361,0.00021897,3]
[332477542,1721227840251,-150.112233,0.000219,2]
[332477543,1721227840260,-325.54216019,0.000219,2]
[332477544,1721227840270,-19531.5285151,0.00021907,3]
[332477545,1721227840281,-48828.8212878,0.00021907,3]
[332477546,1721227840293,-80607.85485452,0.00021917,5]
[332477547,1721227840304,-1067.07630449,0.00021917,2]
[332477548,1721227840314,-298.52792145,0.00021917,2]
[332477549,1721227840325,-507.5197784,0.00021917,2]
[332477550,1721227840337,-500.0,0.00021917,2]
[332477552,1721227840347,-500.0,0.00021917,2]
[332477553,1721227840357,-500.0,0.00021917,2]
[332477554,1721227840367,-500.0,0.00021917,2]
[332477556,1721227840378,-500.0,0.00021917,2]
[332477557,1721227840387,-500.0,0.00021917,2]
[332477558,1721227840397,-500.0,0.00021917,2]
[332477559,1721227840406,-500.0,0.00021917,2]
[332477560,1721227840416,-500.0,0.00021917,2]
[332477561,1721227840426,-500.0,0.00021917,2]
[332477562,1721227840435,-324.80919972,0.00021917,2]
[332477563,1721227840444,-500.0,0.00021917,2]
[332477564,1721227840454,-506.07832615,0.00021917,2]
[332477565,1721227840464,-500.0,0.00021917,2]
[332477566,1721227840474,-500.0,0.00021917,2]
[332477567,1721227840483,-500.0,0.00021917,2]
[332477568,1721227840493,-500.0,0.00021917,2]
[332477569,1721227840502,-500.0,0.00021917,2]
[332477570,1721227840511,-500.0,0.00021917,2]
[332477571,1721227840521,-500.0,0.00021917,2]
[332477572,1721227840533,-509.84706491,0.00021917,2]
[332477573,1721227840543,-500.0,0.00021917,2]
[332477574,1721227840552,-354.8589622,0.00021917,2]
[332477575,1721227840561,-500.0,0.00021917,2]
[332477576,1721227840573,-575.66457202,0.00021917,2]
[332477577,1721227840583,-500.0,0.00021917,2]
[332477578,1721227840592,-500.0,0.00021917,2]
[332477579,1721227840602,-402.243462,0.00021917,2]
[332477580,1721227840615,-583.60933137,0.00021917,2]
[332477581,1721227840624,-500.0,0.00021917,2]
[332477582,1721227840634,-500.0,0.00021917,2]
[332477583,1721227840643,-500.0,0.00021917,2]
[332477584,1721227840652,-500.0,0.00021917,2]
[332477585,1721227840661,-500.0,0.00021917,2]
[332477586,1721227840671,-500.0,0.00021917,2]
[332477587,1721227840681,-500.0,0.00021917,2]
[332477588,1721227840690,-500.0,0.00021917,2]
[332477589,1721227840699,-500.0,0.00021917,2]
[332477590,1721227840709,-500.0,0.00021917,2]
[332477591,1721227840718,-500.0,0.00021917,2]
[332477592,1721227840728,-500.0,0.00021917,2]
[332477593,1721227840738,-500.0,0.00021917,2]
[332477594,1721227840747,-501.5057069,0.00021917,2]
[332477595,1721227840756,-606.92723811,0.00021917,2]
[332477596,1721227840766,-500.0,0.00021917,2]
[332477597,1721227840776,-503.15259238,0.00021917,2]
[332477598,1721227840787,-500.0,0.00021917,2]
[332477599,1721227840798,-500.0,0.00021917,2]
[332477600,1721227840809,-500.0,0.00021917,2]
[332477601,1721227840821,-500.0,0.00021917,2]
[332477602,1721227840832,-500.0,0.00021917,2]
[332477603,1721227840842,-500.0,0.00021917,2]
[332477604,1721227840855,-500.0,0.00021917,2]
[332477606,1721227840864,-500.0,0.00021917,2]
[332477608,1721227840874,-401.34355012,0.00021917,2]
[332477609,1721227840883,-500.0,0.00021917,2]
[332477611,1721227840893,-500.0,0.00021917,2]
[332477613,1721227840902,-500.0,0.00021917,2]
[332477615,1721227840913,-500.0,0.00021917,2]
[332477617,1721227840923,-511.52776106,0.00021917,2]
[332477619,1721227840933,-500.0,0.00021917,2]
[332477620,1721227840942,-500.0,0.00021917,2]
[332477621,1721227840952,-500.0,0.00021917,2]
[332477622,1721227840963,-500.0,0.00021917,2]
[332477623,1721227840973,-500.0,0.00021917,2]
[332477624,1721227840984,-500.0,0.00021917,2]
[332477625,1721227840996,-500.0,0.00021917,2]
[332477626,1721227841007,-500.0,0.00021917,2]
[332477627,1721227841016,-500.0,0.00021917,2]
[332477628,1721227841026,-500.0,0.00021917,2]
[332477629,1721227841037,-500.0,0.00021917,2]
[332477630,1721227841047,-500.0,0.00021917,2]
[332477631,1721227841057,-500.0,0.00021917,2]
[332477632,1721227841067,-500.0,0.00021917,2]
[332477633,1721227841077,-500.0,0.00021917,2]
[332477634,1721227841087,-155.21043325,0.00021917,2]
[332477635,1721227841096,-304.57578418,0.00021917,2]
[332477636,1721227841106,-500.0,0.00021917,2]
[332477637,1721227841116,-500.0,0.00021917,2]
[332477638,1721227841127,-502.36852615,0.00021917,2]
[332477639,1721227841137,-500.0,0.00021917,2]
[332477640,1721227841147,-500.0,0.00021917,2]
[332477641,1721227841157,-500.0,0.00021917,2]
[332477642,1721227841167,-501.62507336,0.00021917,2]
[332477643,1721227841176,-500.0,0.00021917,2]
[332477644,1721227841187,-500.0,0.00021917,2]
[332477645,1721227841197,-500.0,0.00021917,2]
[332477646,1721227841206,-500.0,0.00021917,2]
[332477647,1721227841216,-500.0,0.00021917,2]
[332477648,1721227841225,-500.0,0.00021917,2]
[332477649,1721227841235,-596.31,0.00021917,2]
[332477650,1721227841244,-500.0,0.00021917,2]
[332477651,1721227841253,-410.7879559,0.00021917,2]
[332477652,1721227841264,-500.0,0.00021917,2]
[332477653,1721227841273,-500.0,0.00021917,2]
[332477654,1721227841282,-500.0,0.00021917,2]
[332477655,1721227841293,-500.0,0.00021917,2]
[332477656,1721227841302,-500.0,0.00021917,2]
[332477657,1721227841313,-500.0,0.00021917,2]
[332477658,1721227841324,-500.0,0.00021917,2]
[332477659,1721227841334,-500.0,0.00021917,2]
[332477660,1721227841343,-500.0,0.00021917,2]
[332477661,1721227841352,-500.0,0.00021917,2]
[332477662,1721227841363,-500.0,0.00021917,2]
[332477663,1721227841372,-500.0,0.00021917,2]
[332477664,1721227841382,-500.0,0.00021917,2]
[332477665,1721227841391,-500.0,0.00021917,2]
[332477666,1721227841401,-206.07176751,0.00021917,2]
[332477667,1721227841411,-500.0,0.00021917,2]
[332477668,1721227841421,-500.0,0.00021917,2]
[332477669,1721227841431,-500.0,0.00021917,2]
[332477670,1721227841441,-530.72723451,0.00021917,2]
[332477671,1721227841450,-500.0,0.00021917,2]
[332477672,1721227841460,-500.0,0.00021917,2]
[332477673,1721227841469,-500.0,0.00021917,2]
[332477674,1721227841478,-500.0,0.00021917,2]
[332477675,1721227841488,-508.95478055,0.00021917,2]
[332477676,1721227841498,-500.0,0.00021917,2]
[332477677,1721227841508,-500.0,0.00021917,2]
[332477678,1721227841517,-500.0,0.00021917,2]
[332477679,1721227841530,-500.0,0.00021917,2]
[332477680,1721227841540,-500.0,0.00021917,2]
[332477681,1721227841550,-500.0,0.00021917,2]
[332477682,1721227841560,-500.0,0.00021917,2]
[332477683,1721227841571,-500.0,0.00021917,2]
[332477684,1721227841583,-512.85033136,0.00021917,2]
[332477685,1721227841592,-500.0,0.00021917,2]
[332477686,1721227841602,-500.0,0.00021917,2]
[332477687,1721227841614,-500.0,0.00021917,2]
[332477688,1721227841624,-500.0,0.00021917,2]
[332477689,1721227841633,-500.0,0.00021917,2]
[332477690,1721227841643,-500.0,0.00021917,2]
[332477691,1721227841652,-500.0,0.00021917,2]
[332477692,1721227841661,-500.0,0.00021917,2]
[332477693,1721227841671,-500.0,0.00021917,2]
[332477694,1721227841680,-500.0,0.00021917,2]
[332477695,1721227841691,-500.0,0.00021917,2]
[332477696,1721227841700,-500.0,0.00021917,2]
[332477697,1721227841709,-500.0,0.00021917,2]
[332477698,1721227841719,-500.0,0.00021917,2]
[332477699,1721227841881,-500.0,0.00021917,2]
[332477700,1721227841891,-500.0,0.00021917,2]
[332477701,1721227841901,-500.0,0.00021917,2]
[332477702,1721227841911,-500.0,0.00021917,2]
[332477703,1721227841920,-500.0,0.00021917,2]
[332477704,1721227841929,-500.0,0.00021917,2]